fUST/lending_fUST_20260101
["ID","MTS","AMOUNT","RATE_DAILY","PERIOD"]
[400263810,1767239456010,-1145.477867,0.00027397,7]
[400263811,1767239456019,-151.0,0.00027397,7]
[400263812,1767239456029,-1145.477867,0.00027397,7]
[400263813,1767239456038,-151.0,0.00027397,7]
[400263814,1767239456048,-1145.477871,0.00027397,7]
[400263815,1767239456057,-151.0,0.00027397,7]
[400263816,1767239456067,-776.2,0.00032877,10]
[400263817,1767239456077,-7186.87900901,0.00036953,7]
[400263818,1767239456234,-239.00021,0.00027397,7]
[400263819,1767239456243,-655.20979,0.00031722,30]
[400263820,1767239456258,-3407.68,0.00031722,30]
[400263821,1767239457041,-12332.11021,0.00031722,30]
[400263822,1767239457051,-1766.190914,0.00036953,7]
[400263823,1767239457249,500.0,0.00010569,2]
[400263824,1767239457279,554.92340898,0.00010569,2]
[400263825,1767239457317,731.92874115,0.00010569,2]
[400263826,1767239470890,554.92340898,0.00010569,2]
[400263827,1767239471190,554.92340898,0.00010569,2]
[400263828,1767239471427,731.92874115,0.00010569,2]
[400263829,1767239476590,554.92340898,0.00010569,2]
[400263830,1767239476623,500.0,0.00010568,2]
[400263831,1767239476655,731.92874115,0.00010569,2]
[400263832,1767239483158,554.92340898,0.00010569,2]
[400263833,1767239483189,731.92874115,0.00010569,2]
[400263834,1767239483231,500.0,0.00010568,2]
[400263835,1767239483508,731.92874115,0.00010569,2]
[400263836,1767239483573,500.0,0.00010568,2]
[400263837,1767239483659,500.0,0.00010568,2]
[400263838,1767239483691,554.92340898,0.00010569,2]
[400263839,1767239483849,510.82584037,0.00010569,2]
[400263840,1767239483872,221.10290078,0.00010569,2]
[400263841,1767239484112,500.0,0.00010568,2]
[400263842,1767239484218,731.92874115,0.00010569,2]
[400263843,1767239484248,554.92340898,0.00010569,2]
[400263844,1767239489695,731.92874115,0.00010569,2]
[400263845,1767239489730,500.0,0.00010568,2]
[400263846,1767239489765,669.45452887,0.00010569,2]
[400263847,1767239489793,554.92340898,0.00010569,2]
[400263848,1767239499762,500.0,0.00010568,2]
[400263849,1767239499792,500.0,0.00010568,2]
[400263850,1767239499858,731.92874115,0.00010569,2]
[400263851,1767239499886,500.0,0.00010568,2]
[400263852,1767239499913,500.0,0.00010568,2]
[400263853,1767239499939,500.0,0.00010568,2]
[400263854,1767239499969,500.0,0.00010568,2]
[400263855,1767239500001,500.0,0.00010568,2]
[400263856,1767239500034,500.0,0.00010568,2]
[400263857,1767239500178,545.95135914,0.00010568,2]
[400263858,1767239500207,500.0,0.00010568,2]
[400263859,1767239500235,500.0,0.00010568,2]
[400263860,1767239500265,500.0,0.00010568,2]
[400263861,1767239500345,500.0,0.00010568,2]
[400263862,1767239509816,265.82322071,0.00010568,2]
[400263863,1767239509841,234.17677929,0.00010568,2]
[400263864,1767239509871,436.03705287,0.00010568,2]
[400263865,1767240425110,-291.6739451,0.00011403,2]
[400263866,1767240425132,-581.30797998,0.00011795,2]
[400263867,1767240564162,-674.94537194,0.00011677,2]
[400263868,1767240564182,-150.0,0.00011796,2]
[400263869,1767240564201,-212.8333672,0.00011914,2]
[400263870,1767240564222,-300.0,0.00012401,2]
[400263871,1767240564243,-500.0,0.00012402,2]
[400263872,1767240564264,-500.0,0.00012402,2]
[400263873,1767240564285,-500.0,0.00012402,2]
[400263874,1767240564307,-500.0,0.00012402,2]
[400263875,1767240564328,-500.0,0.00012402,2]
[400263876,1767240564349,-500.0,0.00012402,2]
[400263877,1767240564370,-500.0,0.00012402,2]
[400263878,1767240564390,-393.99459546,0.00012402,2]
[400263879,1767240564412,-500.0,0.00012402,2]
[400263880,1767240564433,-500.0,0.00012402,2]
[400263881,1767240564454,-500.0,0.00012402,2]
[400263882,1767240564474,-500.0,0.00012402,2]
[400263883,1767240564494,-500.0,0.00012402,2]
[400263884,1767240564514,-500.0,0.00012402,2]
[400263885,1767240564535,-500.0,0.00012402,2]
[400263886,1767240564554,-500.0,0.00012402,2]
[400263887,1767240564574,-500.0,0.00012402,2]
[400263888,1767240564595,-604.98195034,0.00012402,2]
[400263889,1767240564616,-500.0,0.00012402,2]
[400263890,1767240564636,-500.0,0.00012402,2]
[400263891,1767240564656,-500.0,0.00012402,2]
[400263892,1767240564675,-500.0,0.00012402,2]
[400263893,1767240564696,-500.0,0.00012402,2]
[400263894,1767240564715,-500.0,0.00012402,2]
[400263895,1767240564737,-500.0,0.00012402,2]
[400263896,1767240564873,-500.0,0.00012402,2]
[400263897,1767240564894,-500.0,0.00012402,2]
[400263898,1767240564913,-500.0,0.00012402,2]
[400263899,1767240564933,-500.0,0.00012402,2]
[400263900,1767240564952,-500.0,0.00012402,2]
[400263901,1767240564971,-500.0,0.00012402,2]
[400263902,1767240564991,-500.0,0.00012402,2]
[400263903,1767240565011,-500.0,0.00012402,2]
[400263904,1767240565030,-500.0,0.00012402,2]
[400263905,1767240565050,-500.0,0.00012402,2]
[400263906,1767240565069,-500.0,0.00012402,2]
[400263907,1767240565089,-500.0,0.00012402,2]
[400263908,1767240565108,-500.0,0.00012402,2]
[400263909,1767240565127,-500.0,0.00012402,2]
[400263910,1767240565147,-500.0,0.00012402,2]
[400263911,1767240565166,-49.53062865,0.00012402,2]
[400263949,1767240631656,-500.0,0.00012303,2]
[400263951,1767240631666,-426.03789884,0.00012303,2]
[400263952,1767240631675,-500.0,0.00012303,2]
[400263954,1767240631684,-2377.10361546,0.00012304,2]
[400263955,1767240631695,-547.38484324,0.00012304,2]
[400263966,1767240637678,-500.0,0.00012303,2]
[400263967,1767240637688,-500.0,0.00012303,2]
[400263968,1767240637698,-500.0,0.00012303,2]
[400263969,1767240637707,-137.54214461,0.00012303,2]
[400263970,1767240637719,-362.45785539,0.00012303,2]
[400263971,1767240637728,-500.0,0.00012303,2]
[400263972,1767240637738,-500.0,0.00012303,2]
[400263973,1767240637748,-500.0,0.00012303,2]
[400263974,1767240637758,-16.761472,0.00012303,2]
[400263975,1767240638586,-96.99799168,0.00012303,2]
[400263976,1767240638597,-386.24053632,0.00012303,2]
[400263977,1767240638607,-500.0,0.00012303,2]
[400263978,1767240638616,-405.25586944,0.00012303,2]
[400263979,1767240638625,-500.0,0.00012303,2]
[400263980,1767240638634,-500.0,0.00012303,2]
[400263981,1767240638643,-253.6014184,0.00012303,2]
[400263982,1767240638652,-500.0,0.00012303,2]
[400263983,1767240638662,-500.0,0.00012303,2]
[400263984,1767240638671,-500.0,0.00012303,2]
[400263985,1767240638680,-997075.5115413,0.00012304,2]
[400263986,1767240638689,-300.0,0.00012401,2]
[400263987,1767240638698,-300.0,0.00012401,2]
[400263988,1767240638707,-300.0,0.00012401,2]
[400263989,1767240638716,-595.0,0.00012401,2]
[400263990,1767240638725,-50000.0,0.00012402,2]
[400263991,1767240638735,-1200.0,0.00012402,2]
[400263992,1767240638744,-500.0,0.00012405,2]
[400263993,1767240638753,-500.0,0.00012405,2]
[400263994,1767240638762,-500.0,0.00012405,2]
[400263995,1767240638771,-500.0,0.00012405,2]
[400263996,1767240638781,-500.0,0.00012405,2]
[400263997,1767240638790,-500.0,0.00012405,2]
[400263998,1767240638799,-500.0,0.00012405,2]
[400263999,1767240638809,-150.0,0.00012675,2]
[400264000,1767240638818,-500.0,0.00013273,2]
[400264001,1767240638827,-420.0,0.00013608,2]
[400264002,1767240638836,-1000.0,0.00013699,2]
[400264003,1767240638845,-177.0,0.00013796,2]
[400264004,1767240638854,-558.35111265,0.00013821,2]
[400264005,1767240638863,-204.0,0.00015796,2]
[400264006,1767240638873,-231.0,0.00017796,2]
[400264007,1767240638882,-1041.66666667,0.00018348,2]
[400264008,1767240638891,-258.0,0.00019796,2]
[400264009,1767240638901,-285.0,0.00021796,2]
[400264010,1767240638910,-11071.0858511,0.00023608,2]
[400264011,1767240638919,-312.0,0.00023796,2]
[400264012,1767240638929,-529.59184715,0.00025,2]
[400264013,1767240638939,-2157.0,0.00025379,2]
[400264014,1767240638948,-1364.0,0.00025379,2]
[400264015,1767240638957,-628.0,0.00025379,2]
[400264016,1767240638967,-416.0,0.00025379,2]
[400264017,1767240638976,-339.0,0.00025796,2]
[400264018,1767240638986,-156.49045569,0.00027124,2]
[400264019,1767240638995,-150.0,0.00027124,2]
[400264020,1767240639005,-150.0,0.00027124,2]
[400264021,1767240639014,-150.0,0.00027124,2]
[400264022,1767240639023,-150.0,0.00027124,2]
[400264023,1767240639032,-150.0,0.00027124,2]
[400264024,1767240639042,-150.0,0.00027124,2]
[400264025,1767240639051,-152.22174304,0.00027124,2]
[400264026,1767240639060,-150.99946648,0.00027124,2]
[400264027,1767240639069,-159.24580966,0.00027124,2]
[400264028,1767240639079,-204.80198236,0.00027124,2]
[400264029,1767240639089,-150.0,0.00027261,2]
[400264030,1767240639098,-150.0,0.00027261,2]
[400264031,1767240639108,-150.0,0.00027261,2]
[400264032,1767240639117,-150.0,0.00027261,2]
[400264033,1767240639127,-150.0,0.00027261,2]
[400264034,1767240639136,-201.22280694,0.00027398,2]
[400264035,1767240639145,-201.42021145,0.00027398,2]
[400264036,1767240639155,-203.05365841,0.00027398,2]
[400264037,1767240639164,-213.89109528,0.00027398,2]
[400264038,1767240639174,-202.63574367,0.00027398,2]
[400264039,1767240639183,-366.0,0.00027796,2]
[400264040,1767240639192,-2157.0,0.00028379,2]
[400264041,1767240639201,-1364.0,0.00028379,2]
[400264042,1767240639210,-628.0,0.00028379,2]
[400264043,1767240639219,-416.0,0.00028379,2]
[400264044,1767240639228,-393.0,0.00029796,2]
[400264045,1767240639238,-503.25108664,0.00030537,15]
[400264046,1767240639247,-190.956,0.00030544,26]
[400264047,1767240639256,-402.28,0.00030958,30]
[400264048,1767240639265,-944.99051665,0.00031,120]
[400264049,1767240639274,-2157.0,0.00031379,2]
[400264050,1767240639284,-1364.0,0.00031379,2]
[400264051,1767240639293,-628.0,0.00031379,2]
[400264052,1767240639302,-416.0,0.00031379,2]
[400264053,1767240639311,-402.28,0.00031506,31]
[400264054,1767240639319,-420.0,0.00031796,2]
[400264055,1767240639328,-944.99051665,0.000319,120]
[400264056,1767240639337,-402.28,0.00032054,32]
[400264057,1767240639347,-15029.0,0.00032492,30]
[400264058,1767240639357,-418.0,0.00032492,30]
[400264059,1767240639367,-5000.0,0.00032601,15]
[400264060,1767240639376,-402.28,0.00032602,33]
[400264061,1767240639389,-5000.0,0.00032876,8]
[400264062,1767240639399,-150.0,0.00032877,5]
[400264063,1767240639409,-944.99051665,0.000329,120]
[400264064,1767240639418,-6464.62555377,0.00032986,37]
[400264065,1767240639428,-1018.0,0.00033,7]
[400264066,1767240639438,-5000.0,0.00033149,15]
[400264067,1767240639447,-402.28,0.0003315,34]
[400264069,1767240639459,-5000.0,0.00033199,15]
[400264071,1767240639468,-4269.2919,0.0003322,30]
[400264072,1767240639478,-5000.0,0.00033226,15]
[400264073,1767240639488,-5000.0,0.00033697,15]
[400264074,1767240639497,-402.28,0.00033698,35]
[400264076,1767240639506,-250.0,0.00033699,5]
[400264077,1767240639516,-447.0,0.00033796,120]
[400264079,1767240639525,-944.99051665,0.000339,120]
[400264080,1767240639534,-1018.0,0.00034,7]
[400264081,1767240639543,-5000.0,0.00034214,6]
[400264082,1767240639552,-5000.0,0.00034245,15]
[400264084,1767240639561,-402.28,0.00034246,36]
[400264086,1767240639570,-5000.0,0.00034355,15]
[400264087,1767240639580,-2157.0,0.00034379,2]
[400264088,1767240639589,-1364.0,0.00034379,2]
[400264089,1767240639598,-628.0,0.00034379,2]
[400264090,1767240639607,-416.0,0.00034379,2]
[400264091,1767240639616,-350.0,0.00034521,5]
[400264092,1767240639624,-5000.0,0.0003462,3]
[400264093,1767240639633,-5000.0,0.00034793,15]
[400264094,1767240639642,-402.28,0.00034794,37]
[400264095,1767240639651,-944.99051665,0.000349,120]
[400264096,1767240639661,-5000.0,0.00034999,15]
[400264098,1767240639670,-5000.0,0.00034999,15]
[400264099,1767240639679,-200.61641,0.00035,120]
[400264100,1767240639689,-3000.0,0.00035,15]
[400264101,1767240639698,-5000.0,0.00035341,15]
[400264102,1767240639707,-402.28,0.00035342,38]
[400264103,1767240639716,-152.06050421,0.00035342,5]
[400264104,1767240639725,-600.0,0.00035475,2]
[400264105,1767240639734,-5000.0,0.00035591,15]
[400264106,1767240639743,-500.0,0.00035592,20]
[400264107,1767240639753,-500.0,0.00035592,20]
[400264108,1767240639762,-500.0,0.00035592,20]
[400264109,1767240639772,-500.0,0.00035592,20]
[400264110,1767240639781,-500.0,0.00035592,20]
[400264111,1767240639791,-500.0,0.00035592,20]
[400264112,1767240639800,-503.8917487,0.00035592,20]
[400264113,1767240639809,-160.0,0.00035626,11]
[400264114,1767240639818,-200.0,0.00035648,120]
[400264115,1767240639827,-200.0,0.0003567,120]
[400264116,1767240639836,-457.37133152,0.00035696,2]
[400264117,1767240639845,-200.0,0.00035784,120]
[400264118,1767240639854,-231.65777535,0.00035796,120]
[400264119,1767240639863,-5000.0,0.00035799,10]
[400264120,1767240639873,-600.0,0.00035844,2]
[400264121,1767240639882,-1743.28197771,0.0003588,2]
[400264122,1767240639891,-5000.0,0.00035889,15]
[400264123,1767240639900,-402.28,0.0003589,39]
[400264124,1767240639909,-717.0,0.00035946,11]
[400264125,1767240639918,-1743.28197771,0.0003598,2]
[400264126,1767240639927,-200.0,0.00035985,120]
[400264127,1767240639936,-163.0,0.00036,30]
[400264128,1767240639945,-170.11452971,0.00036055,30]
[400264129,1767240639954,-1743.28197771,0.0003608,2]
[400264130,1767240639963,-170.1145297,0.0003611,30]
[400264131,1767240639972,-170.11452971,0.0003611,30]
[400264133,1767240639981,-200.0,0.00036144,120]
[400264134,1767240639990,-1743.28197771,0.0003618,2]
[400264135,1767240639999,-600.0,0.00036214,2]
[400264136,1767240640008,-1743.28197771,0.0003628,2]
[400264137,1767240640017,-1743.28197771,0.0003638,2]
[400264138,1767240640026,-5000.0,0.00036437,15]
[400264139,1767240640035,-402.28,0.00036438,40]
[400264140,1767240640044,-1743.28197771,0.0003648,2]
[400264141,1767240640053,-1743.28197771,0.0003658,2]
[400264142,1767240640063,-721.11712913,0.00036583,2]
[400264143,1767240640071,-5000.0,0.00036588,5]
[400264144,1767240640080,-1743.28197771,0.0003668,2]
[400264145,1767240640089,-5000.0,0.00036696,11]
[400264146,1767240640099,-35714.32,0.000367,16]
[400264147,1767240640107,-101965.3982053,0.00036749,5]
[400264155,1767240645820,-150.0,0.00012127,2]
[400264156,1767240645830,-150.0,0.00013229,2]
[400264157,1767240645839,-150.0,0.00014332,2]
[400264158,1767240645848,-150.0,0.00015434,2]
[400264159,1767240645857,-150.0,0.00016537,2]
[400264160,1767240645867,-318.34,0.000237,2]
[400264161,1767240645876,-318.34,0.000318,2]
[400264162,1767240645885,-726.0,0.0003605,11]
[400264163,1767240645894,-14617.13469712,0.00036749,30]
[400264165,1767241066876,271.17,0.0001,2]
[400264167,1767241424891,25000.0,0.000115,3]
[400264168,1767241424916,25000.0,0.000115,3]
[400264171,1767241641067,15000.0,0.00028767,120]
[400264219,1767241831834,-513.15983465,0.00010998,2]
[400264221,1767241831846,-60.84016535,0.00010998,2]
[400264222,1767241831855,-150.0,0.00011098,2]
[400264223,1767241831865,-300.0,0.00011229,2]
[400264224,1767241831874,-300.0,0.00011229,2]
[400264225,1767241831883,-300.0,0.00011229,2]
[400264226,1767241831893,-1200.0,0.0001123,2]
[400264227,1767241831902,-300.0,0.0001123,2]
[400264228,1767241831911,-2653.67929829,0.00011231,2]
[400264246,1767241837855,-7346.32070171,0.00011231,2]
[400264247,1767241837864,-999.0,0.00011301,2]
[400264248,1767241837874,-298.22652919,0.00011378,2]
[400264249,1767241837883,-500.0,0.00011378,2]
[400264250,1767241837892,-500.0,0.00011378,2]
[400264251,1767241837902,-500.0,0.00011378,2]
[400264252,1767241837911,-500.0,0.00011378,2]
[400264253,1767241837920,-500.0,0.00011378,2]
[400264254,1767241837929,-500.0,0.00011378,2]
[400264255,1767241837939,-271.12803034,0.00011378,2]
[400264256,1767241837947,-503.6014184,0.00011378,2]
[400264257,1767241837956,-500.0,0.00011378,2]
[400264258,1767241837965,-500.0,0.00011378,2]
[400264259,1767241837975,-500.0,0.00011378,2]
[400264260,1767241837984,-500.0,0.00011378,2]
[400264261,1767241837993,-500.0,0.00011378,2]
[400264262,1767241838002,-500.0,0.00011378,2]
[400264263,1767241838011,-50000.0,0.00011379,2]
[400264264,1767241838021,-169.29286,0.00011381,2]
[400264265,1767241838030,-1000000.0,0.00011399,2]
[400264266,1767241838040,-57435.91551413,0.000115,3]
[400264267,1767241838049,-150.0,0.00012025,2]
[400264268,1767241838058,-150.0,0.00012025,2]
[400264269,1767241838068,-500.0,0.00012025,2]
[400264270,1767241838078,-150.0,0.00012025,2]
[400264271,1767241838087,-156.49045569,0.00012025,2]
[400264272,1767241838097,-150.0,0.00012025,2]
[400264273,1767241838107,-150.0,0.00012025,2]
[400264274,1767241838116,-150.0,0.00012025,2]
[400264275,1767241838126,-150.0,0.00012025,2]
[400264276,1767241838135,-150.0,0.00012025,2]
[400264277,1767241838144,-150.0,0.00012025,2]
[400264278,1767241838154,-152.22174304,0.00012025,2]
[400264279,1767241838163,-150.0,0.00012025,2]
[400264280,1767241838172,-150.99946648,0.00012025,2]
[400264281,1767241838182,-159.24580966,0.00012025,2]
[400264282,1767241838191,-204.80198236,0.00012025,2]
[400264283,1767241838201,-500.0,0.00012027,2]
[400264284,1767241838211,-150.0,0.00012027,2]
[400264285,1767241838220,-150.0,0.00012027,2]
[400264286,1767241838230,-153.37346524,0.00012162,2]
[400264287,1767241838240,-150.0,0.00012162,2]
[400264288,1767241838249,-500.0,0.00012162,2]
[400264289,1767241838259,-150.0,0.00012162,2]
[400264290,1767241838268,-150.0,0.00012162,2]
[400264291,1767241838278,-150.0,0.00012162,2]
[400264292,1767241838287,-151.42564193,0.00012162,2]
[400264293,1767241838437,-150.0,0.00012162,2]
[400264294,1767241838448,-150.0,0.00012162,2]
[400264295,1767241838457,-150.0,0.00012162,2]
[400264296,1767241838467,-524.93036213,0.00012164,2]
[400264297,1767241838477,-150.39445871,0.00012164,2]
[400264298,1767241838486,-150.0,0.00012164,2]
[400264299,1767241838496,-555.27218388,0.00012229,2]
[400264300,1767241838506,-190.955,0.00012234,2]
[400264301,1767241838516,-184.00470644,0.00012234,2]
[400264302,1767241838526,-150.0,0.00012299,2]
[400264303,1767241838535,-500.0,0.00012299,2]
[400264304,1767241838545,-201.22280694,0.00012299,2]
[400264305,1767241838554,-201.42021145,0.00012299,2]
[400264306,1767241838563,-213.89109528,0.00012299,2]
[400264307,1767241838573,-203.05365841,0.00012299,2]
[400264308,1767241838583,-202.63574367,0.00012299,2]
[400264309,1767241838592,-151.0,0.000123,2]
[400264310,1767241838602,-151.0,0.000123,2]
[400264311,1767241838611,-151.0,0.000123,2]
[400264312,1767241838621,-215.28294886,0.00012301,2]
[400264313,1767241838630,-874.47,0.00012329,2]
[400264314,1767241838640,-728.72,0.00012329,2]
[400264315,1767241838650,-607.27,0.00012329,2]
[400264316,1767241838659,-506.06,0.00012329,2]
[400264317,1767241838669,-421.71,0.00012329,2]
[400264318,1767241838679,-351.43,0.00012329,2]
[400264319,1767241838688,-292.86,0.00012329,2]
[400264320,1767241838697,-244.05,0.00012329,2]
[400264321,1767241838706,-203.37,0.00012329,2]
[400264322,1767241838716,-169.48,0.00012329,2]
[400264323,1767241838725,-847.4,0.00012329,2]
[400264324,1767241838735,-363.0,0.00012337,2]
[400264325,1767241838746,-420.0,0.00012337,2]
[400264326,1767241838758,-301.0,0.00012352,2]
[400264327,1767241838767,-150.0,0.00012436,2]
[400264328,1767241838776,-500.0,0.00012436,2]
[400264329,1767241838786,-150.0,0.00012503,2]
[400264330,1767241838795,-150.0,0.00012573,2]
[400264331,1767241838804,-250.0,0.0001271,2]
[400264332,1767241838813,-471.46700113,0.00012916,2]
[400264333,1767241838822,-500.0,0.00012999,2]
[400264334,1767241838832,-177.0,0.00013098,2]
[400264335,1767241838841,-501.0951248,0.00013136,2]
[400264336,1767241838851,-471.46700113,0.00013256,2]
[400264337,1767241838860,-500.0,0.00013273,2]
[400264338,1767241838870,-500.0,0.00013273,2]
[400264339,1767241838879,-500.0,0.00013273,2]
[400264340,1767241838890,-500.0,0.00013273,2]
[400264341,1767241838899,-500.0,0.00013273,2]
[400264342,1767241838909,-500.0,0.00013273,2]
[400264343,1767241838918,-505.39134232,0.00013273,2]
[400264344,1767241838928,-500.0,0.00013273,2]
[400264345,1767241838937,-500.0,0.00013273,2]
[400264346,1767241838947,-500.0,0.00013273,2]
[400264347,1767241838958,-497.57485249,0.00013273,2]
[400264348,1767241838967,-510.90139551,0.00013273,2]
[400264349,1767241838976,-500.0,0.00013273,2]
[400264350,1767241838986,-500.0,0.00013273,2]
[400264351,1767241838996,-1682.55469545,0.0001354,2]
[400264352,1767241839006,-587.0,0.00013553,2]
[400264353,1767241839016,-157.74,0.00013565,2]
[400264354,1767241839026,-471.46700113,0.00013595,2]
[400264355,1767241839036,-300.0,0.00013673,2]
[400264356,1767241839046,-582.30404194,0.00013698,2]
[400264357,1767241839055,-500.0,0.00013698,2]
[400264358,1767241839065,-500.0,0.00013698,2]
[400264359,1767241839074,-501.34554409,0.00013698,2]
[400264360,1767241839084,-500.0,0.00013698,2]
[400264361,1767241839093,-530.23109502,0.00013698,2]
[400264362,1767241839102,-634.29682706,0.00013698,2]
[400264363,1767241839112,-500.0,0.00013698,2]
[400264364,1767241839121,-500.0,0.00013698,2]
[400264365,1767241839131,-500.0,0.00013698,2]
[400264366,1767241839140,-500.0,0.00013698,2]
[400264367,1767241839149,-500.0,0.00013698,2]
[400264368,1767241839159,-500.0,0.00013698,2]
[400264369,1767241839169,-294.49990003,0.00013698,2]
[400264370,1767241839179,-15492.5924877,0.00013699,2]
[400264371,1767241839188,-2943.2889994,0.00013699,2]
[400264372,1767241839198,-1384.5057019,0.00013699,2]
[400264373,1767241839208,-856.807096,0.00013699,2]
[400264374,1767241839217,-159.77203792,0.00013699,2]
[400264375,1767241839227,-457.22674749,0.00013699,2]
[400264376,1767241839238,-500.0,0.00013699,2]
[400264377,1767241839247,-500.87963329,0.00013699,2]
[400264378,1767241839256,-500.0,0.00013699,2]
[400264379,1767241839266,-501.33800671,0.00013699,2]
[400264380,1767241839275,-150.0,0.00013699,2]
[400264381,1767241839285,-500.0,0.00013699,2]
[400264383,1767241839294,-500.0,0.00013699,2]
[400264385,1767241839303,-500.0,0.00013699,2]
[400264386,1767241839315,-500.0,0.00013699,2]
[400264387,1767241839324,-500.0,0.00013699,2]
[400264388,1767241839334,-500.0,0.00013699,2]
[400264389,1767241839343,-251.00272433,0.00013699,2]
[400264391,1767241839353,-500.27689491,0.00013699,2]
[400264392,1767241839362,-500.0,0.00013699,2]
[400264393,1767241839371,-500.0,0.00013699,2]
[400264394,1767241839380,-500.0,0.00013699,2]
[400264395,1767241839390,-500.0,0.00013699,2]
[400264396,1767241839400,-500.0,0.00013699,2]
[400264397,1767241839420,-504.76855077,0.00013699,2]
[400264398,1767241839429,-500.0,0.00013699,2]
[400264399,1767241839439,-500.0,0.00013699,2]
[400264400,1767241839448,-226.86184291,0.00013699,2]
[400264401,1767241839457,-500.50269191,0.00013699,2]
[400264402,1767241839467,-500.0,0.00013699,2]
[400264403,1767241839476,-500.0,0.00013699,2]
[400264404,1767241839486,-500.73491636,0.00013699,2]
[400264405,1767241839495,-502.90555737,0.00013699,2]
[400264406,1767241839505,-500.96605192,0.00013699,2]
[400264408,1767241839515,-500.40244192,0.00013699,2]
[400264410,1767241839526,-383.99222334,0.00013699,2]
[400264411,1767241839536,-500.17833478,0.00013699,2]
[400264412,1767241839546,-373.28262423,0.00013699,2]
[400264413,1767241839556,-500.41254196,0.00013699,2]
[400264414,1767241839566,-316.4851046,0.00013699,2]
[400264415,1767241839576,-500.0867866,0.00013699,2]
[400264416,1767241839586,-500.0,0.00013699,2]
[400264417,1767241839595,-500.95516799,0.00013699,2]
[400264418,1767241839606,-500.49764939,0.00013699,2]
[400264419,1767241839616,-500.0,0.00013699,2]
[400264421,1767241839626,-501.3582173,0.00013699,2]
[400264423,1767241839635,-501.34213841,0.00013699,2]
[400264425,1767241839644,-500.86510493,0.00013699,2]
[400264427,1767241839654,-534.87876427,0.00013699,2]
[400264428,1767241839663,-500.79513169,0.00013699,2]
[400264430,1767241839672,-524.82836698,0.00013699,2]
[400264432,1767241839682,-500.0,0.00013699,2]
[400264434,1767241839691,-527.43501459,0.00013821,2]
[400264436,1767241839702,-1000.0,0.00013821,2]
[400264438,1767241839711,-1000.0,0.00013821,2]
[400264440,1767241839720,-1041.08539316,0.00013821,2]
[400264442,1767241839729,-987.40538387,0.00013821,2]
[400264444,1767241839738,-501.63273171,0.00013821,2]
[400264446,1767241839749,-1000.0,0.00013821,2]
[400264447,1767241839759,-1001.18082375,0.00013821,2]
[400264449,1767241839770,-507.02514153,0.00013821,2]
[400264451,1767241839779,-502.4239539,0.00013821,2]
[400264453,1767241839791,-1000.0,0.00013821,2]
[400264455,1767241839800,-471.46700113,0.00013934,2]
[400264457,1767241839809,-600.0,0.00014221,2]
[400264459,1767241839820,-1001.84835347,0.00014247,2]
[400264460,1767241839829,-1100.08232842,0.00014247,2]
[400264462,1767241839838,-400.0,0.00014247,2]
[400264463,1767241839847,-502.7866066,0.00014247,2]
[400264465,1767241839857,-1001.95418441,0.00014247,2]
[400264467,1767241839866,-1082.59288447,0.00014247,2]
[400264469,1767241839875,-1000.0,0.00014247,2]
[400264471,1767241839884,-503.848502,0.00014247,2]